[Event "Titled Tuesday Blitz November 29 Late 2022"]
[White "Qashashvili, Alexandre"]
[Black "Calcada, Lucas Galvan"]
[WhiteFideId "13600842"]
[BlackFideId "22746099"]
[WhiteElo "2405"]
[BlackElo "1523"]
[Result "1-0"]
[Round "08"]
[TimeControl "180+1"]
[Date "2022.11.30"]
[WhiteClock "0:00:07"]
[BlackClock "0:00:03"]

1. e4 {[%clk 0:03:00]}  c5 {[%clk 0:02:59]} 2. Nc3 {[%clk 0:03:01]}  Nc6 {[%clk 0:02:55]} 3. Nf3 {[%clk 0:03:00]}  g6 {[%clk 0:02:54]} 4. d3 {[%clk 0:03:00]}  Bg7 {[%clk 0:02:53]} 5. Be3 {[%clk 0:03:00]}  d6 {[%clk 0:02:51]} 6. Qd2 {[%clk 0:03:00]}  Nd4 {[%clk 0:02:41]} 7. Be2 {[%clk 0:02:59]}  h5 {[%clk 0:02:34]} 8. h3 {[%clk 0:02:58]}  e5 {[%clk 0:02:26]} 9. Nd5 {[%clk 0:02:56]}  Be6 {[%clk 0:02:26]} 10. c3 {[%clk 0:02:55]}  Nxe2 {[%clk 0:02:22]} 11. Qxe2 {[%clk 0:02:54]}  Bxd5 {[%clk 0:02:23]} 12. exd5 {[%clk 0:02:55]}  f5 {[%clk 0:02:22]} 13. Bg5 {[%clk 0:02:54]}  Bf6 {[%clk 0:02:19]} 14. Bxf6 {[%clk 0:02:52]}  Nxf6 {[%clk 0:02:20]} 15. c4 {[%clk 0:02:51]}  h4 {[%clk 0:02:20]} 16. Ng5 {[%clk 0:02:49]}  Qe7 {[%clk 0:02:16]} 17. Ne6 {[%clk 0:02:46]}  Nh5 {[%clk 0:02:14]} 18. O-O-O {[%clk 0:02:42]}  a6 {[%clk 0:02:08]} 19. Rhe1 {[%clk 0:01:41]}  b5 {[%clk 0:01:22]} 20. f4 {[%clk 0:01:40]}  Ng3 {[%clk 0:01:09]} 21. Qe3 {[%clk 0:01:28]}  e4 {[%clk 0:01:09]} 22. dxe4 {[%clk 0:01:27]}  Nxe4 {[%clk 0:01:08]} 23. Qf3 {[%clk 0:01:07]}  bxc4 {[%clk 0:00:55]} 24. Rxe4 {[%clk 0:01:06]}  fxe4 {[%clk 0:00:54]} 25. Qxe4 {[%clk 0:01:07]}  Ra7 {[%clk 0:00:48]} 26. Qxg6+ {[%clk 0:01:02]}  Qf7 {[%clk 0:00:47]} 27. Qe4 {[%clk 0:00:54]}  Kd7 {[%clk 0:00:47]} 28. Qxc4 {[%clk 0:00:52]}  Rb8 {[%clk 0:00:44]} 29. Qa4+ {[%clk 0:00:24]}  Rb5 {[%clk 0:00:43]} 30. Qc4 {[%clk 0:00:16]}  Rb4 {[%clk 0:00:41]} 31. Qe2 {[%clk 0:00:11]}  Qf6 {[%clk 0:00:35]} 32. Rd2 {[%clk 0:00:10]}  Rab7 {[%clk 0:00:31]} 33. Qg4 {[%clk 0:00:10]}  Ke7 {[%clk 0:00:14]} 34. Qe2 {[%clk 0:00:08]}  Kd7 {[%clk 0:00:13]} 35. Qg4 {[%clk 0:00:08]}  Ke7 {[%clk 0:00:12]} 36. Re2 {[%clk 0:00:08]}  Rxb2 {[%clk 0:00:07]} 37. Nxc5+ {[%clk 0:00:08]}  Rxe2 {[%clk 0:00:05]} 38. Qxe2+ {[%clk 0:00:09]}  Kf7 {[%clk 0:00:05]} 39. Nxb7 {[%clk 0:00:09]}  Qa1+ {[%clk 0:00:03]} 40. Kd2 {[%clk 0:00:09]}  Qxa2+ {[%clk 0:00:03]} 41. Ke3 {[%clk 0:00:07]} 1-0


[Site "https://www.chess.com"]

[Event "Titled Tuesday Blitz November 29 Late 2022"]
[White "Rangel, Daniel"]
[Black "chess50years"]
[WhiteFideId "2124475"]
[WhiteElo "2225"]
[BlackElo "2166"]
[Result "0-1"]
[Round "08"]
[TimeControl "180+1"]
[Date "2022.11.30"]
[WhiteClock "0:01:26"]
[BlackClock "0:00:39"]

1. d4 {[%clk 0:03:00]}  d5 {[%clk 0:02:59]} 2. c4 {[%clk 0:03:01]}  c6 {[%clk 0:02:59]} 3. Nc3 {[%clk 0:03:02]}  Nf6 {[%clk 0:02:58]} 4. Bf4 {[%clk 0:03:02]}  g6 {[%clk 0:02:55]} 5. e3 {[%clk 0:03:02]}  Bg7 {[%clk 0:02:53]} 6. Nf3 {[%clk 0:03:01]}  O-O {[%clk 0:02:52]} 7. h3 {[%clk 0:03:01]}  Bf5 {[%clk 0:02:52]} 8. cxd5 {[%clk 0:02:59]}  cxd5 {[%clk 0:02:49]} 9. Qb3 {[%clk 0:02:59]}  Qb6 {[%clk 0:02:32]} 10. Nxd5 {[%clk 0:02:46]}  Nxd5 {[%clk 0:02:29]} 11. Qxd5 {[%clk 0:02:46]}  Qxb2 {[%clk 0:02:27]} 12. Rd1 {[%clk 0:02:39]}  Qc3+ {[%clk 0:02:24]} 13. Nd2 {[%clk 0:02:37]}  Nc6 {[%clk 0:02:21]} 14. Qb3 {[%clk 0:02:33]}  Qxb3 {[%clk 0:02:14]} 15. Nxb3 {[%clk 0:02:34]}  Nb4 {[%clk 0:02:11]} 16. g4 {[%clk 0:02:23]}  Be4 {[%clk 0:02:05]} 17. Rg1 {[%clk 0:02:23]}  Nxa2 {[%clk 0:02:02]} 18. Bc4 {[%clk 0:02:19]}  Nb4 {[%clk 0:01:57]} 19. Nc5 {[%clk 0:02:14]}  Bd5 {[%clk 0:01:49]} 20. Bxd5 {[%clk 0:02:11]}  Nxd5 {[%clk 0:01:50]} 21. Nxb7 {[%clk 0:02:11]}  Nxf4 {[%clk 0:01:46]} 22. exf4 {[%clk 0:02:10]}  Rab8 {[%clk 0:01:42]} 23. Nc5 {[%clk 0:02:09]}  Rb2 {[%clk 0:01:40]} 24. Rg3 {[%clk 0:02:07]}  Rd8 {[%clk 0:01:38]} 25. Rgd3 {[%clk 0:02:04]}  Rd5 {[%clk 0:01:30]} 26. Na4 {[%clk 0:01:56]}  Rc2 {[%clk 0:01:30]} 27. Nc3 {[%clk 0:01:55]}  Rd7 {[%clk 0:01:18]} 28. Ne4 {[%clk 0:01:53]}  a5 {[%clk 0:01:09]} 29. d5 {[%clk 0:01:51]}  a4 {[%clk 0:01:06]} 30. g5 {[%clk 0:01:51]}  Rc4 {[%clk 0:01:00]} 31. f3 {[%clk 0:01:49]}  h6 {[%clk 0:00:52]} 32. h4 {[%clk 0:01:42]}  hxg5 {[%clk 0:00:51]} 33. fxg5 {[%clk 0:01:41]}  Bb2 {[%clk 0:00:51]} 34. d6 {[%clk 0:01:32]}  exd6 {[%clk 0:00:48]} 35. Rxd6 {[%clk 0:01:32]}  Rxd6 {[%clk 0:00:46]} 36. Rxd6 {[%clk 0:01:32]}  a3 {[%clk 0:00:44]} 37. Ra6 {[%clk 0:01:33]}  Rc1+ {[%clk 0:00:41]} 38. Kd2 {[%clk 0:01:31]}  Rh1 {[%clk 0:00:42]} 39. Nf6+ {[%clk 0:01:30]}  Bxf6 {[%clk 0:00:41]} 40. gxf6 {[%clk 0:01:31]}  a2 {[%clk 0:00:40]} 41. Ra8+ {[%clk 0:01:26]}  Kh7 {[%clk 0:00:39]} 0-1


[Site "https://www.chess.com"]

[Event "Titled Tuesday Blitz November 29 Late 2022"]
[White "Reprintsev, Alexander"]
[Black "Perez Torres, Nabi Isaias"]
[WhiteFideId "14100541"]
[BlackFideId "5120373"]
[WhiteElo "2230"]
[BlackElo "1915"]
[Result "0-1"]
[Round "08"]
[TimeControl "180+1"]
[Date "2022.11.30"]
[WhiteClock "0:00:20"]
[BlackClock "0:00:41"]

1. e4 {[%clk 0:03:00]}  c5 {[%clk 0:02:56]} 2. b3 {[%clk 0:03:00]}  d6 {[%clk 0:02:56]} 3. Bb2 {[%clk 0:02:59]}  Nf6 {[%clk 0:02:56]} 4. Bxf6 {[%clk 0:02:58]}  gxf6 {[%clk 0:02:57]} 5. Qh5 {[%clk 0:02:57]}  Nc6 {[%clk 0:02:55]} 6. Nc3 {[%clk 0:02:57]}  Nd4 {[%clk 0:02:54]} 7. Bc4 {[%clk 0:02:51]}  Nxc2+ {[%clk 0:02:20]} 8. Kd1 {[%clk 0:02:50]}  Nxa1 {[%clk 0:02:21]} 9. Qxf7+ {[%clk 0:02:01]}  Kd7 {[%clk 0:02:19]} 10. Nf3 {[%clk 0:01:54]}  Kc7 {[%clk 0:02:13]} 11. Kc1 {[%clk 0:01:43]}  Bh6 {[%clk 0:01:50]} 12. Kb2 {[%clk 0:01:41]}  Nxb3 {[%clk 0:01:42]} 13. axb3 {[%clk 0:01:38]}  Qe8 {[%clk 0:01:38]} 14. Qd5 {[%clk 0:01:33]}  a6 {[%clk 0:01:30]} 15. Ra1 {[%clk 0:01:15]}  Bd7 {[%clk 0:01:29]} 16. Qd3 {[%clk 0:01:07]}  e6 {[%clk 0:01:25]} 17. g3 {[%clk 0:00:57]}  b5 {[%clk 0:01:23]} 18. Bd5 {[%clk 0:00:54]}  exd5 {[%clk 0:01:18]} 19. Nxd5+ {[%clk 0:00:53]}  Kb7 {[%clk 0:01:16]} 20. Kc2 {[%clk 0:00:45]}  Bc6 {[%clk 0:01:12]} 21. Nxf6 {[%clk 0:00:37]}  Qf7 {[%clk 0:01:02]} 22. e5 {[%clk 0:00:35]}  dxe5 {[%clk 0:00:55]} 23. Ne4 {[%clk 0:00:31]}  Rhd8 {[%clk 0:00:43]} 24. Nxc5+ {[%clk 0:00:24]}  Kb6 {[%clk 0:00:43]} 25. Qe3 {[%clk 0:00:20]}  Bxe3 {[%clk 0:00:41]} 0-1


[Site "https://www.chess.com"]

[Event "Titled Tuesday Blitz November 29 Late 2022"]
[White "Rodriguez Santiago, Jaime"]
[Black "Forgacs, Attila Jr."]
[WhiteFideId "3100898"]
[BlackFideId "773654"]
[WhiteElo "2025"]
[BlackElo "2168"]
[Result "1-0"]
[Round "08"]
[TimeControl "180+1"]
[Date "2022.11.30"]
[WhiteClock "0:00:22"]
[BlackClock "0:00:07"]

1. c4 {[%clk 0:03:00]}  e5 {[%clk 0:02:59]} 2. Nc3 {[%clk 0:02:59]}  d6 {[%clk 0:02:59]} 3. g3 {[%clk 0:02:59]}  g6 {[%clk 0:02:59]} 4. Bg2 {[%clk 0:03:00]}  Bg7 {[%clk 0:02:59]} 5. e4 {[%clk 0:03:00]}  Nc6 {[%clk 0:03:00]} 6. Nge2 {[%clk 0:03:00]}  f5 {[%clk 0:03:00]} 7. d3 {[%clk 0:03:00]}  Nf6 {[%clk 0:03:00]} 8. O-O {[%clk 0:02:59]}  O-O {[%clk 0:03:01]} 9. exf5 {[%clk 0:02:56]}  Bxf5 {[%clk 0:03:00]} 10. d4 {[%clk 0:02:48]}  exd4 {[%clk 0:02:59]} 11. Nxd4 {[%clk 0:02:47]}  Nxd4 {[%clk 0:02:59]} 12. Qxd4 {[%clk 0:02:46]}  Qd7 {[%clk 0:02:59]} 13. Bxb7 {[%clk 0:02:39]}  Rae8 {[%clk 0:02:53]} 14. Bg2 {[%clk 0:02:38]}  Bh3 {[%clk 0:02:32]} 15. Be3 {[%clk 0:02:21]}  Bxg2 {[%clk 0:02:30]} 16. Kxg2 {[%clk 0:02:21]}  Kh8 {[%clk 0:02:26]} 17. h3 {[%clk 0:02:17]}  Ne4 {[%clk 0:02:24]} 18. Qd3 {[%clk 0:02:10]}  Qf7 {[%clk 0:02:10]} 19. f3 {[%clk 0:01:38]}  Nxc3 {[%clk 0:02:08]} 20. bxc3 {[%clk 0:01:37]}  Re6 {[%clk 0:01:53]} 21. Rf2 {[%clk 0:01:35]}  Rfe8 {[%clk 0:01:53]} 22. Bd4 {[%clk 0:01:34]}  Re1 {[%clk 0:01:39]} 23. Rxe1 {[%clk 0:01:25]}  Rxe1 {[%clk 0:01:40]} 24. Bxa7 {[%clk 0:01:21]}  c5 {[%clk 0:01:36]} 25. Bb8 {[%clk 0:01:14]}  Rc1 {[%clk 0:00:58]} 26. Qxd6 {[%clk 0:01:04]}  Rxc3 {[%clk 0:00:52]} 27. Qxc5 {[%clk 0:01:02]}  Rxc4 {[%clk 0:00:45]} 28. Qd6 {[%clk 0:00:53]}  Bd4 {[%clk 0:00:40]} 29. Re2 {[%clk 0:00:47]}  Bf6 {[%clk 0:00:16]} 30. Qd3 {[%clk 0:00:22]}  Rc8 {[%clk 0:00:16]} 31. Bf4 {[%clk 0:00:21]}  Rd8 {[%clk 0:00:16]} 32. Qe3 {[%clk 0:00:21]}  Kg7 {[%clk 0:00:14]} 33. a4 {[%clk 0:00:22]}  g5 {[%clk 0:00:13]} 34. Be5 {[%clk 0:00:21]}  h6 {[%clk 0:00:11]} 35. Bxf6+ {[%clk 0:00:21]}  Qxf6 {[%clk 0:00:11]} 36. a5 {[%clk 0:00:21]}  Ra8 {[%clk 0:00:10]} 37. Qb6 {[%clk 0:00:20]}  Qxb6 {[%clk 0:00:07]} 38. axb6 {[%clk 0:00:20]}  Rb8 {[%clk 0:00:07]} 39. Rb2 {[%clk 0:00:21]}  Kf6 {[%clk 0:00:07]} 40. Kf2 {[%clk 0:00:22]}  Ke5 {[%clk 0:00:08]} 41. Ke3 {[%clk 0:00:22]}  Kd5 {[%clk 0:00:08]} 42. b7 {[%clk 0:00:23]}  Ke5 {[%clk 0:00:08]} 43. Rb5+ {[%clk 0:00:22]}  Kd6 {[%clk 0:00:08]} 44. Ke4 {[%clk 0:00:23]}  Kc6 {[%clk 0:00:08]} 45. Rb3 {[%clk 0:00:22]}  Kd6 {[%clk 0:00:03]} 46. Kf5 {[%clk 0:00:23]}  Kd5 {[%clk 0:00:02]} 47. Kg6 {[%clk 0:00:23]}  Ke6 {[%clk 0:00:03]} 48. Kxh6 {[%clk 0:00:23]}  Kf6 {[%clk 0:00:03]} 49. Rb6+ {[%clk 0:00:22]}  Kf5 {[%clk 0:00:04]} 50. Rb5+ {[%clk 0:00:23]}  Kf6 {[%clk 0:00:04]} 51. Kh5 {[%clk 0:00:20]}  Rh8+ {[%clk 0:00:03]} 52. Kg4 {[%clk 0:00:20]}  Rb8 {[%clk 0:00:04]} 53. h4 {[%clk 0:00:20]}  gxh4 {[%clk 0:00:04]} 54. Kxh4 {[%clk 0:00:21]}  Rh8+ {[%clk 0:00:04]} 55. Kg4 {[%clk 0:00:22]}  Rg8+ {[%clk 0:00:04]} 56. Kf4 {[%clk 0:00:22]}  Rb8 {[%clk 0:00:04]} 57. g4 {[%clk 0:00:23]}  Ke6 {[%clk 0:00:04]} 58. g5 {[%clk 0:00:23]}  Kd6 {[%clk 0:00:05]} 59. Kg4 {[%clk 0:00:23]}  Kc6 {[%clk 0:00:06]} 60. Rb3 {[%clk 0:00:24]}  Kd6 {[%clk 0:00:07]} 61. f4 {[%clk 0:00:24]}  Ke6 {[%clk 0:00:07]} 62. f5+ {[%clk 0:00:25]}  Ke5 {[%clk 0:00:08]} 63. g6 {[%clk 0:00:25]}  Kf6 {[%clk 0:00:08]} 64. Rb6+ {[%clk 0:00:24]}  Kg7 {[%clk 0:00:09]} 65. Kg5 {[%clk 0:00:25]}  Rf8 {[%clk 0:00:08]} 66. b8=Q {[%clk 0:00:24]}  Rxb8 {[%clk 0:00:08]} 67. f6+ {[%clk 0:00:21]}  Kf8 {[%clk 0:00:07]} 68. Rxb8# {[%clk 0:00:22]} 1-0


[Site "https://www.chess.com"]

[Event "Titled Tuesday Blitz November 29 Late 2022"]
[White "Rose, Felix"]
[Black "Brown, Andrew"]
[WhiteFideId "5105722"]
[BlackFideId "3206513"]
[WhiteElo "2039"]
[BlackElo "2245"]
[Result "1-0"]
[Round "08"]
[TimeControl "180+1"]
[Date "2022.11.30"]
[WhiteClock "0:01:39"]
[BlackClock "0:00:04"]

1. e4 {[%clk 0:02:59]}  g6 {[%clk 0:03:00]} 2. d4 {[%clk 0:02:59]}  Bg7 {[%clk 0:03:01]} 3. Nf3 {[%clk 0:03:00]}  c6 {[%clk 0:03:01]} 4. h3 {[%clk 0:02:57]}  d5 {[%clk 0:03:01]} 5. e5 {[%clk 0:02:57]}  h5 {[%clk 0:02:55]} 6. Bd3 {[%clk 0:02:55]}  Nh6 {[%clk 0:02:55]} 7. O-O {[%clk 0:02:51]}  Bf5 {[%clk 0:02:55]} 8. Bxh6 {[%clk 0:02:41]}  Bxh6 {[%clk 0:02:55]} 9. Bxf5 {[%clk 0:02:40]}  gxf5 {[%clk 0:02:54]} 10. e6 {[%clk 0:02:36]}  fxe6 {[%clk 0:02:47]} 11. Re1 {[%clk 0:02:33]}  Qd6 {[%clk 0:02:39]} 12. Qe2 {[%clk 0:02:20]}  Nd7 {[%clk 0:02:30]} 13. Qxe6 {[%clk 0:02:17]}  Qxe6 {[%clk 0:02:29]} 14. Rxe6 {[%clk 0:02:18]}  Bc1 {[%clk 0:01:48]} 15. Nbd2 {[%clk 0:02:10]}  Bxb2 {[%clk 0:01:48]} 16. Rb1 {[%clk 0:02:06]}  Ba3 {[%clk 0:01:18]} 17. Rxb7 {[%clk 0:02:03]}  Bd6 {[%clk 0:00:40]} 18. c4 {[%clk 0:01:53]}  Kd8 {[%clk 0:00:17]} 19. c5 {[%clk 0:01:48]}  Bc7 {[%clk 0:00:12]} 20. Rxc6 {[%clk 0:01:44]}  Ba5 {[%clk 0:00:04]} 21. Nb3 {[%clk 0:01:39]} 1-0


[Site "https://www.chess.com"]

[Event "Titled Tuesday Blitz November 29 Late 2022"]
[White "Shimanov, Aleksandr"]
[Black "Cardoso Cardoso, Jose Gabriel"]
[WhiteFideId "4198603"]
[BlackFideId "4430492"]
[WhiteElo "2605"]
[BlackElo "2484"]
[Result "1-0"]
[Round "08"]
[TimeControl "180+1"]
[Date "2022.11.30"]
[WhiteClock "0:00:18"]
[BlackClock "0:00:03"]

1. g3 {[%clk 0:03:00]}  g6 {[%clk 0:03:00]} 2. e3 {[%clk 0:02:41]}  Bg7 {[%clk 0:03:01]} 3. d4 {[%clk 0:02:41]}  c5 {[%clk 0:03:00]} 4. Bg2 {[%clk 0:02:36]}  d5 {[%clk 0:02:56]} 5. dxc5 {[%clk 0:02:24]}  Nf6 {[%clk 0:02:52]} 6. Nc3 {[%clk 0:02:21]}  Qa5 {[%clk 0:02:31]} 7. Ne2 {[%clk 0:02:19]}  e6 {[%clk 0:02:29]} 8. O-O {[%clk 0:02:16]}  Qxc5 {[%clk 0:02:29]} 9. e4 {[%clk 0:02:17]}  dxe4 {[%clk 0:02:13]} 10. Be3 {[%clk 0:02:16]}  Qe7 {[%clk 0:02:04]} 11. Nxe4 {[%clk 0:02:03]}  Nxe4 {[%clk 0:02:04]} 12. Bxe4 {[%clk 0:02:04]}  O-O {[%clk 0:02:03]} 13. c3 {[%clk 0:02:03]}  e5 {[%clk 0:02:00]} 14. Qb3 {[%clk 0:01:53]}  Nc6 {[%clk 0:01:58]} 15. Rfd1 {[%clk 0:01:51]}  Bg4 {[%clk 0:01:54]} 16. f3 {[%clk 0:01:50]}  Be6 {[%clk 0:01:49]} 17. Qb5 {[%clk 0:01:49]}  Rfd8 {[%clk 0:01:43]} 18. Bc2 {[%clk 0:01:39]}  a6 {[%clk 0:01:39]} 19. Qb6 {[%clk 0:01:37]}  Bc4 {[%clk 0:01:30]} 20. Re1 {[%clk 0:01:27]}  Rd7 {[%clk 0:01:16]} 21. Bb3 {[%clk 0:01:26]}  Bxb3 {[%clk 0:01:11]} 22. axb3 {[%clk 0:01:27]}  Rad8 {[%clk 0:01:09]} 23. b4 {[%clk 0:01:19]}  Qe6 {[%clk 0:00:59]} 24. b5 {[%clk 0:01:08]}  axb5 {[%clk 0:00:58]} 25. Qxb5 {[%clk 0:01:09]}  h5 {[%clk 0:00:52]} 26. Bb6 {[%clk 0:01:08]}  Rd5 {[%clk 0:00:48]} 27. Qc4 {[%clk 0:01:02]}  R8d7 {[%clk 0:00:47]} 28. Nf4 {[%clk 0:00:47]}  Qd6 {[%clk 0:00:07]} 29. Nxd5 {[%clk 0:00:47]}  Qxd5 {[%clk 0:00:08]} 30. Qxd5 {[%clk 0:00:47]}  Rxd5 {[%clk 0:00:09]} 31. Be3 {[%clk 0:00:39]}  Bf6 {[%clk 0:00:07]} 32. Red1 {[%clk 0:00:39]}  Rb5 {[%clk 0:00:05]} 33. Rd2 {[%clk 0:00:32]}  Be7 {[%clk 0:00:05]} 34. Kf2 {[%clk 0:00:27]}  Kg7 {[%clk 0:00:06]} 35. Ra8 {[%clk 0:00:23]}  Rb3 {[%clk 0:00:06]} 36. Ke2 {[%clk 0:00:22]}  h4 {[%clk 0:00:05]} 37. Kd1 {[%clk 0:00:22]}  hxg3 {[%clk 0:00:05]} 38. hxg3 {[%clk 0:00:22]}  Rb5 {[%clk 0:00:05]} 39. b4 {[%clk 0:00:21]}  e4 {[%clk 0:00:05]} 40. fxe4 {[%clk 0:00:20]}  Re5 {[%clk 0:00:05]} 41. Bd4 {[%clk 0:00:20]}  Nxd4 {[%clk 0:00:04]} 42. Rxd4 {[%clk 0:00:21]}  Rg5 {[%clk 0:00:04]} 43. Rd3 {[%clk 0:00:21]}  Rg4 {[%clk 0:00:05]} 44. Rb8 {[%clk 0:00:21]}  Bf6 {[%clk 0:00:03]} 45. Rxb7 {[%clk 0:00:21]}  Rxe4 {[%clk 0:00:03]} 46. b5 {[%clk 0:00:21]}  Rc4 {[%clk 0:00:02]} 47. b6 {[%clk 0:00:21]}  Bxc3 {[%clk 0:00:02]} 48. Rc7 {[%clk 0:00:20]}  Rb4 {[%clk 0:00:02]} 49. Rdxc3 {[%clk 0:00:19]}  Rxb6 {[%clk 0:00:03]} 50. Rf3 {[%clk 0:00:19]}  Rd6+ {[%clk 0:00:03]} 51. Kc2 {[%clk 0:00:19]}  Kh6 {[%clk 0:00:03]} 52. Rcxf7 {[%clk 0:00:18]}  Rd5 {[%clk 0:00:03]} 53. Rd3 {[%clk 0:00:17]}  Rc5+ {[%clk 0:00:04]} 54. Kd2 {[%clk 0:00:17]}  Kg5 {[%clk 0:00:04]} 55. Rf4 {[%clk 0:00:17]}  Ra5 {[%clk 0:00:04]} 56. Ke3 {[%clk 0:00:17]}  Re5+ {[%clk 0:00:04]} 57. Kf3 {[%clk 0:00:17]}  Ra5 {[%clk 0:00:04]} 58. Re3 {[%clk 0:00:18]}  Rb5 {[%clk 0:00:04]} 59. Rfe4 {[%clk 0:00:18]}  Kh6 {[%clk 0:00:04]} 60. Re5 {[%clk 0:00:18]}  Rb4 {[%clk 0:00:05]} 61. R3e4 {[%clk 0:00:18]}  Rb3+ {[%clk 0:00:06]} 62. Kg4 {[%clk 0:00:18]}  Rb7 {[%clk 0:00:06]} 63. Kh4 {[%clk 0:00:17]}  Rf7 {[%clk 0:00:05]} 64. g4 {[%clk 0:00:18]}  Rf1 {[%clk 0:00:02]} 65. g5+ {[%clk 0:00:18]}  Kg7 {[%clk 0:00:03]} 66. Re7+ {[%clk 0:00:18]}  Kg8 {[%clk 0:00:03]} 67. Re8+ {[%clk 0:00:18]} 1-0


[Site "https://www.chess.com"]

[Event "Titled Tuesday Blitz November 29 Late 2022"]
[White "Sokolovsky, Yahli"]
[Black "Rubio Tent, Francisco"]
[WhiteFideId "2820242"]
[BlackFideId "2238233"]
[WhiteElo "2316"]
[BlackElo "2211"]
[Result "0-1"]
[Round "08"]
[TimeControl "180+1"]
[Date "2022.11.30"]
[WhiteClock "0:00:14"]
[BlackClock "0:00:13"]

1. b3 {[%clk 0:03:00]}  e5 {[%clk 0:02:57]} 2. Bb2 {[%clk 0:03:01]}  Nc6 {[%clk 0:02:57]} 3. e3 {[%clk 0:03:00]}  d5 {[%clk 0:02:57]} 4. Nf3 {[%clk 0:03:00]}  Bd6 {[%clk 0:02:57]} 5. d4 {[%clk 0:02:58]}  e4 {[%clk 0:02:54]} 6. Nfd2 {[%clk 0:02:59]}  Nce7 {[%clk 0:02:53]} 7. c4 {[%clk 0:02:59]}  c6 {[%clk 0:02:53]} 8. Nc3 {[%clk 0:03:00]}  f5 {[%clk 0:02:52]} 9. f4 {[%clk 0:02:48]}  Nf6 {[%clk 0:02:51]} 10. Be2 {[%clk 0:02:49]}  Be6 {[%clk 0:02:49]} 11. Qc2 {[%clk 0:02:49]}  a6 {[%clk 0:02:49]} 12. O-O-O {[%clk 0:02:48]}  b5 {[%clk 0:02:49]} 13. c5 {[%clk 0:02:47]}  Bc7 {[%clk 0:02:47]} 14. h3 {[%clk 0:02:47]}  h5 {[%clk 0:02:45]} 15. Rdg1 {[%clk 0:02:46]}  h4 {[%clk 0:02:43]} 16. g4 {[%clk 0:02:46]}  hxg3 {[%clk 0:02:42]} 17. Rxg3 {[%clk 0:02:47]}  g6 {[%clk 0:02:38]} 18. Nd1 {[%clk 0:02:35]}  Qd7 {[%clk 0:02:22]} 19. Nf2 {[%clk 0:02:33]}  O-O-O {[%clk 0:02:22]} 20. Nb1 {[%clk 0:02:02]}  Rh4 {[%clk 0:02:08]} 21. Qd2 {[%clk 0:02:02]}  Rdh8 {[%clk 0:02:04]} 22. Rhg1 {[%clk 0:02:02]}  Bf7 {[%clk 0:02:02]} 23. Bc3 {[%clk 0:02:02]}  Qd8 {[%clk 0:02:02]} 24. Na3 {[%clk 0:01:56]}  Kb7 {[%clk 0:02:02]} 25. Nc2 {[%clk 0:01:56]}  a5 {[%clk 0:01:38]} 26. Ne1 {[%clk 0:01:56]}  Be8 {[%clk 0:01:25]} 27. Ng2 {[%clk 0:01:56]}  R4h7 {[%clk 0:01:25]} 28. h4 {[%clk 0:01:56]}  Nh5 {[%clk 0:01:17]} 29. Bxh5 {[%clk 0:01:56]}  Rxh5 {[%clk 0:01:18]} 30. Nh3 {[%clk 0:01:56]}  b4 {[%clk 0:01:13]} 31. Bb2 {[%clk 0:01:56]}  Ng8 {[%clk 0:01:10]} 32. Ng5 {[%clk 0:01:55]}  Qf6 {[%clk 0:01:06]} 33. a3 {[%clk 0:01:46]}  bxa3 {[%clk 0:01:05]} 34. Bxa3 {[%clk 0:01:47]}  Kc8 {[%clk 0:00:52]} 35. Bb2 {[%clk 0:01:44]}  Kd7 {[%clk 0:00:52]} 36. Bc3 {[%clk 0:01:44]}  Qd8 {[%clk 0:00:53]} 37. Kb2 {[%clk 0:01:45]}  Nf6 {[%clk 0:00:24]} 38. Ra1 {[%clk 0:01:44]}  Ng4 {[%clk 0:00:20]} 39. Rh3 {[%clk 0:01:34]}  Qb8 {[%clk 0:00:06]} 40. Bxa5 {[%clk 0:01:32]}  Qb5 {[%clk 0:00:06]} 41. Bxc7 {[%clk 0:01:20]}  Kxc7 {[%clk 0:00:06]} 42. Rhh1 {[%clk 0:01:19]}  Bd7 {[%clk 0:00:03]} 43. Ra7+ {[%clk 0:01:18]}  Kd8 {[%clk 0:00:01]} 44. Rha1 {[%clk 0:01:13]}  Ke7 {[%clk 0:00:01]} 45. R1a5 {[%clk 0:01:04]}  Qf1 {[%clk 0:00:01]} 46. Rb7 {[%clk 0:01:00]}  Nf2 {[%clk 0:00:01]} 47. Raa7 {[%clk 0:00:56]}  Rd8 {[%clk 0:00:01]} 48. Kc2 {[%clk 0:00:30]}  Qxg2 {[%clk 0:00:01]} 49. Ra2 {[%clk 0:00:22]}  Rxh4 {[%clk 0:00:02]} 50. Kc3 {[%clk 0:00:22]}  Rh2 {[%clk 0:00:03]} 51. Rc2 {[%clk 0:00:16]}  Qg3 {[%clk 0:00:03]} 52. b4 {[%clk 0:00:14]}  Nd1+ {[%clk 0:00:03]} 53. Qxd1 {[%clk 0:00:14]}  Qxe3+ {[%clk 0:00:03]} 54. Kb2 {[%clk 0:00:15]}  Rxc2+ {[%clk 0:00:03]} 55. Kxc2 {[%clk 0:00:15]}  Qxf4 {[%clk 0:00:03]} 56. Qg1 {[%clk 0:00:10]}  Ra8 {[%clk 0:00:01]} 57. Kb3 {[%clk 0:00:09]}  Qd2 {[%clk 0:00:01]} 58. Qb1 {[%clk 0:00:09]}  Qe3+ {[%clk 0:00:01]} 59. Kc2 {[%clk 0:00:08]}  Qxg5 {[%clk 0:00:02]} 60. b5 {[%clk 0:00:08]}  Qg2+ {[%clk 0:00:03]} 61. Kc1 {[%clk 0:00:08]}  Ra2 {[%clk 0:00:01]} 62. Rxd7+ {[%clk 0:00:06]}  Kxd7 {[%clk 0:00:01]} 63. bxc6+ {[%clk 0:00:07]}  Ke6 {[%clk 0:00:02]} 64. Qb3 {[%clk 0:00:02]}  Qf2 {[%clk 0:00:02]} 65. Kb1 {[%clk 0:00:02]}  Qe2 {[%clk 0:00:02]} 66. Qxa2 {[%clk 0:00:02]}  Qd1+ {[%clk 0:00:02]} 67. Kb2 {[%clk 0:00:02]}  Qxd4+ {[%clk 0:00:03]} 68. Kb3 {[%clk 0:00:03]}  Qxc5 {[%clk 0:00:04]} 69. Qa6 {[%clk 0:00:03]}  Qc4+ {[%clk 0:00:04]} 70. Qxc4 {[%clk 0:00:04]}  dxc4+ {[%clk 0:00:04]} 71. Kxc4 {[%clk 0:00:05]}  Kd6 {[%clk 0:00:05]} 72. Kb5 {[%clk 0:00:05]}  Kc7 {[%clk 0:00:06]} 73. Kc5 {[%clk 0:00:06]}  g5 {[%clk 0:00:07]} 74. Kd5 {[%clk 0:00:07]}  g4 {[%clk 0:00:07]} 75. Ke5 {[%clk 0:00:08]}  g3 {[%clk 0:00:08]} 76. Kf4 {[%clk 0:00:09]}  g2 {[%clk 0:00:09]} 77. Kxf5 {[%clk 0:00:10]}  g1=Q {[%clk 0:00:10]} 78. Kxe4 {[%clk 0:00:10]}  Qc1 {[%clk 0:00:10]} 79. Kd4 {[%clk 0:00:11]}  Qxc6 {[%clk 0:00:11]} 80. Ke5 {[%clk 0:00:12]}  Qd6+ {[%clk 0:00:12]} 81. Ke4 {[%clk 0:00:13]}  Kd7 {[%clk 0:00:12]} 82. Ke3 {[%clk 0:00:14]}  Ke7 {[%clk 0:00:13]} 0-1


[Site "https://www.chess.com"]